bitfinex-derivatives/quotes_BTCF0:USTF0_20251228
["timestamp","ask_amount","ask_price","bid_price","bid_amount"]
[1766944394927,0.02431215,87842.0,87833.0,0.0113931]
[1766944395128,0.10011579,87843.0,87833.0,0.0113931]
[1766944395327,0.02431219,87842.0,87833.0,0.0113931]
[1766944395530,0.10011579,87843.0,87833.0,0.0113931]
[1766944395730,0.02431219,87842.0,87833.0,0.0413931]
[1766944395929,0.10011579,87843.0,87833.0,0.0413931]
[1766944396130,0.02431219,87842.0,87833.0,0.0413931]
[1766944396330,0.10011579,87843.0,87833.0,0.0413931]
[1766944396528,0.0243122,87842.0,87833.0,0.0413931]
[1766944396728,0.10011579,87843.0,87833.0,0.0413931]
[1766944396935,0.0243122,87842.0,87833.0,0.0413931]
[1766944397130,0.10011579,87843.0,87833.0,0.0413931]
[1766944397432,0.0243122,87842.0,87833.0,0.0413931]
[1766944397733,0.10011579,87843.0,87833.0,0.0413931]
[1766944397928,0.02431224,87842.0,87833.0,0.0413931]
[1766944398128,0.10011579,87843.0,87833.0,0.0413931]
[1766944398329,0.02431224,87842.0,87833.0,0.0413931]
[1766944398529,0.10011579,87843.0,87833.0,0.0413931]
[1766944398729,0.02431227,87842.0,87833.0,0.0413931]
[1766944399029,0.10011579,87843.0,87833.0,0.0413931]
[1766944399230,0.02431227,87842.0,87833.0,0.0413931]
[1766944399530,0.10011579,87843.0,87833.0,0.0413931]
[1766944399827,0.02431226,87842.0,87833.0,0.0413931]
[1766944400024,0.10011579,87843.0,87833.0,0.0413931]
[1766944400226,0.02431226,87842.0,87833.0,0.03]
[1766944400425,0.10011579,87843.0,87833.0,0.03]
[1766944400632,0.02431226,87842.0,87833.0,0.03]
[1766944400931,0.10011579,87843.0,87833.0,0.03]
[1766944401132,0.02431226,87842.0,87833.0,0.03]
[1766944401333,0.10011579,87843.0,87833.0,0.03]
[1766944401632,0.02431227,87842.0,87832.0,0.0113932]
[1766944401833,0.10011579,87843.0,87825.0,9.604e-05]
[1766944402034,0.09994506,87840.0,87825.0,0.03009604]
[1766944402229,0.09994506,87840.0,87832.0,0.0113932]
[1766944404635,0.09994506,87840.0,87832.0,0.0413932]
[1766944407337,0.09994506,87840.0,87832.0,0.0113932]
[1766944408136,0.09994506,87840.0,87829.0,0.0113937]
[1766944408336,0.09994506,87840.0,87829.0,0.0413937]
[1766944409040,0.09994506,87840.0,87829.0,0.0113937]
[1766944413042,0.09994506,87840.0,87831.0,0.0113933]
[1766944414242,0.02433132,87839.0,87831.0,0.0113933]
[1766944414441,0.09994506,87840.0,87828.0,0.0113937]
[1766944414641,0.09994506,87840.0,87828.0,0.0413937]
[1766944414642,0.02433132,87839.0,87828.0,0.0413937]
[1766944414942,0.09994506,87840.0,87828.0,0.0413937]
[1766944415241,0.02433132,87839.0,87828.0,0.0413937]
[1766944415442,0.09994506,87840.0,87828.0,0.0413937]
[1766944415644,0.0243312,87839.0,87828.0,0.0413937]
[1766944415941,0.09994506,87840.0,87828.0,0.0413937]
[1766944416142,0.0243312,87839.0,87828.0,0.0413937]
[1766944416341,0.09994506,87840.0,87828.0,0.0413937]
[1766944416542,0.0243311,87839.0,87828.0,0.0413937]
[1766944416729,0.09994506,87840.0,87828.0,0.0413937]
[1766944416934,0.0243311,87839.0,87828.0,0.0413937]
[1766944417134,0.09994506,87840.0,87828.0,0.0413937]
[1766944417340,0.02433102,87839.0,87828.0,0.0413937]
[1766944417536,0.09994506,87840.0,87828.0,0.0413937]
[1766944417737,0.024331,87839.0,87828.0,0.0413937]
[1766944417939,0.09994506,87840.0,87828.0,0.0413937]
[1766944418142,0.024331,87839.0,87830.0,0.0113935]
[1766944418340,0.09994506,87840.0,87830.0,0.0113935]
[1766944418541,0.02433091,87839.0,87830.0,0.0113935]
[1766944418742,0.09994506,87840.0,87830.0,0.0113935]
[1766944418941,0.02433091,87839.0,87830.0,0.0113935]
[1766944419246,0.09994506,87840.0,87830.0,0.0113935]
[1766944419446,0.0243308,87839.0,87830.0,0.0113935]
[1766944419646,0.09994506,87840.0,87830.0,0.0113935]
[1766944419849,0.0243308,87839.0,87830.0,0.0113935]
[1766944420144,0.09994506,87840.0,87830.0,0.0113935]
[1766944420347,0.02433074,87839.0,87830.0,0.0113935]
[1766944420651,0.09994506,87840.0,87830.0,0.0113935]
[1766944420844,0.02433071,87839.0,87830.0,0.0113935]
[1766944421034,0.09994506,87840.0,87830.0,0.0113935]
[1766944421236,0.02433068,87839.0,87830.0,0.0113935]
[1766944421440,0.09994506,87840.0,87830.0,0.0113935]
[1766944421737,0.02433055,87839.0,87830.0,0.0113935]
[1766944421941,0.09994506,87840.0,87830.0,0.0113935]
[1766944422252,0.02433058,87839.0,87830.0,0.0113935]
[1766944422548,0.09994506,87840.0,87830.0,0.0113935]
[1766944422749,0.02433054,87839.0,87830.0,0.0113935]
[1766944422938,0.09994506,87840.0,87830.0,0.0113935]
[1766944423142,0.02433052,87839.0,87830.0,0.0113935]
[1766944423341,0.09994506,87840.0,87830.0,0.0113935]
[1766944423541,0.02433049,87839.0,87830.0,0.0113935]
[1766944423738,0.09994506,87840.0,87830.0,0.0113935]
[1766944423938,0.02433049,87839.0,87830.0,0.0113935]
[1766944424138,0.09994506,87840.0,87830.0,0.0113935]
[1766944434052,0.09994506,87840.0,87827.0,0.0113938]
[1766944434260,0.09994506,87840.0,87825.0,0.05709604]
[1766944434450,0.09994506,87840.0,87825.0,0.06709604]
[1766944435259,0.09994506,87840.0,87829.0,0.0113936]
[1766944439561,0.09994506,87840.0,87831.0,0.0113934]
[1766944443465,0.09994506,87840.0,87825.0,0.05709604]
[1766944443664,0.09994506,87840.0,87825.0,0.08709604]
[1766944444466,0.00017073,87843.0,87825.0,0.08709604]
[1766944444658,0.02437154,87842.0,87825.0,0.08709604]
[1766944444861,0.02437154,87841.0,87825.0,0.08709604]
[1766944445060,0.02437154,87840.0,87825.0,0.08709604]
[1766944445260,0.00017073,87843.0,87829.0,0.0113936]
[1766944445560,0.02437142,87842.0,87829.0,0.0113936]
[1766944445755,0.02437142,87841.0,87829.0,0.0113936]
[1766944446062,0.02437142,87840.0,87829.0,0.0113936]
[1766944446371,0.02437142,87839.0,87829.0,0.0113936]
[1766944446566,0.00017073,87843.0,87829.0,0.0113936]
[1766944446762,0.02437125,87842.0,87829.0,0.0113936]
[1766944447064,0.02437125,87841.0,87829.0,0.0113936]
[1766944447366,0.02437125,87840.0,87829.0,0.0113936]
[1766944447568,0.00017073,87843.0,87829.0,0.0113936]
[1766944447760,0.02437089,87842.0,87829.0,0.0113936]
[1766944448061,0.02437089,87841.0,87829.0,0.0113936]
[1766944448265,0.02437089,87840.0,87829.0,0.0113936]
[1766944448466,0.00017073,87843.0,87829.0,0.0113936]
[1766944448668,0.02437074,87842.0,87829.0,0.0113936]
[1766944448964,0.02437074,87841.0,87829.0,0.0113936]
[1766944449164,0.02437074,87840.0,87829.0,0.0113936]
[1766944449366,0.00017073,87843.0,87829.0,0.0113936]
[1766944449566,0.02437063,87842.0,87829.0,0.0113936]
[1766944449765,0.02437063,87841.0,87829.0,0.0113936]
[1766944449965,0.02437063,87840.0,87829.0,0.0113936]
[1766944450170,0.00017073,87843.0,87829.0,0.0113936]
[1766944450368,0.0243705,87842.0,87829.0,0.0113936]
[1766944450668,0.0243705,87841.0,87829.0,0.0113936]
[1766944450969,0.0243705,87840.0,87829.0,0.0113936]
[1766944451164,0.00017073,87843.0,87829.0,0.0113936]
[1766944451360,0.02437035,87842.0,87829.0,0.0113936]
[1766944451560,0.02437035,87841.0,87829.0,0.0113936]
[1766944451767,0.02437035,87840.0,87829.0,0.0113936]
[1766944451965,0.00017073,87843.0,87829.0,0.0113936]
[1766944452166,0.02437035,87842.0,87829.0,0.0113936]
[1766944452370,0.02437035,87841.0,87826.0,0.011394]
[1766944452667,0.02437035,87840.0,87826.0,0.041394]
[1766944452867,0.02437035,87839.0,87826.0,0.041394]
[1766944453169,0.00017073,87843.0,87826.0,0.041394]
[1766944453368,0.02437026,87842.0,87826.0,0.041394]
[1766944453568,0.02437026,87841.0,87826.0,0.041394]
[1766944453770,0.02437026,87840.0,87826.0,0.041394]
[1766944453965,0.02437026,87839.0,87826.0,0.041394]
[1766944454166,0.00017073,87843.0,87826.0,0.041394]
[1766944454367,0.02437016,87842.0,87826.0,0.011394]
[1766944454668,0.02437016,87841.0,87826.0,0.041394]
[1766944454965,0.02437016,87840.0,87826.0,0.041394]
[1766944455165,0.02437016,87839.0,87826.0,0.041394]
[1766944455365,0.02437016,87838.0,87826.0,0.041394]
[1766944455567,0.02437016,87837.0,87826.0,0.041394]
[1766944455767,0.00017073,87843.0,87826.0,0.041394]
[1766944455967,0.02437007,87842.0,87826.0,0.041394]
[1766944456167,0.02437007,87841.0,87826.0,0.041394]
[1766944456368,0.02437007,87840.0,87826.0,0.041394]
[1766944456567,0.02437007,87839.0,87826.0,0.041394]
[1766944456769,0.02437007,87838.0,87826.0,0.041394]
[1766944456971,0.02437007,87837.0,87826.0,0.041394]
[1766944457269,0.00017073,87843.0,87826.0,0.041394]
[1766944457568,0.02437021,87842.0,87826.0,0.041394]
[1766944457770,0.02437021,87841.0,87826.0,0.041394]
[1766944457969,0.02437021,87840.0,87826.0,0.041394]
[1766944458170,0.00017073,87843.0,87826.0,0.041394]
[1766944458171,0.02437021,87839.0,87826.0,0.041394]
[1766944458371,0.02437021,87838.0,87826.0,0.041394]
[1766944458671,0.02437021,87837.0,87826.0,0.041394]
[1766944458871,0.00017073,87843.0,87826.0,0.041394]
[1766944459172,0.02437041,87842.0,87826.0,0.041394]
[1766944459369,0.02437041,87841.0,87826.0,0.041394]
[1766944459571,0.02437041,87840.0,87826.0,0.041394]
[1766944459767,0.02437041,87839.0,87826.0,0.041394]
[1766944459967,0.02437041,87838.0,87826.0,0.041394]
[1766944460268,0.02437041,87837.0,87826.0,0.041394]
[1766944460467,0.00017073,87843.0,87826.0,0.041394]
[1766944460669,0.02437108,87842.0,87828.0,0.0113937]
[1766944460869,0.02437108,87841.0,87828.0,0.0113937]
[1766944461063,0.02437108,87840.0,87828.0,0.0113937]
[1766944461259,0.02437108,87839.0,87828.0,0.0113937]
[1766944461464,0.02437108,87838.0,87828.0,0.0113937]
[1766944461660,0.02437108,87837.0,87828.0,0.0113937]
[1766944461864,0.00017073,87843.0,87828.0,0.0113937]
[1766944462071,0.02437155,87842.0,87828.0,0.0113937]
[1766944462271,0.02437155,87841.0,87828.0,0.0113937]
[1766944462467,0.02437155,87840.0,87828.0,0.0113937]
[1766944462670,0.02437155,87839.0,87828.0,0.0113937]
[1766944462870,0.02437155,87838.0,87828.0,0.0113937]
[1766944463167,0.02437155,87837.0,87828.0,0.0113937]
[1766944463370,0.00017073,87843.0,87828.0,0.0113937]
[1766944463565,0.02437206,87842.0,87828.0,0.0113937]
[1766944463762,0.02437206,87841.0,87828.0,0.0113937]
[1766944463965,0.02437206,87840.0,87828.0,0.0113937]
[1766944464265,0.02437206,87839.0,87828.0,0.0113937]
[1766944464575,0.00017073,87843.0,87828.0,0.0113937]
[1766944464773,0.02437239,87842.0,87828.0,0.0113937]
[1766944464970,0.02437239,87841.0,87828.0,0.0113937]
[1766944465169,0.02437239,87840.0,87828.0,0.0113937]
[1766944465368,0.02437239,87839.0,87828.0,0.0113937]
[1766944465568,0.00017073,87843.0,87828.0,0.0113937]
[1766944465769,0.02437269,87842.0,87828.0,0.0113937]
[1766944466074,0.02437269,87841.0,87828.0,0.0113937]
[1766944466273,0.02437269,87840.0,87828.0,0.0113937]
[1766944466476,0.02437269,87839.0,87828.0,0.0113937]
[1766944466676,0.00017073,87843.0,87828.0,0.0113937]
[1766944466974,0.02435766,87842.0,87828.0,0.0113937]
[1766944467175,0.02435766,87841.0,87828.0,0.0113937]
[1766944467377,0.02435766,87840.0,87828.0,0.0113937]
[1766944467564,0.02435766,87839.0,87828.0,0.0113937]
[1766944467769,0.00017073,87843.0,87828.0,0.0113937]
[1766944467967,0.02435789,87842.0,87828.0,0.0113937]
[1766944468170,0.02435789,87841.0,87828.0,0.0113937]
[1766944468371,0.02435789,87840.0,87828.0,0.0113937]
[1766944468579,0.02435789,87839.0,87828.0,0.0113937]
[1766944468889,0.00017073,87843.0,87828.0,0.0113937]
[1766944469079,0.02435815,87842.0,87828.0,0.0113937]
[1766944469277,0.02435815,87841.0,87828.0,0.0113937]
[1766944469478,0.02435815,87840.0,87828.0,0.0113937]
[1766944469778,0.02435815,87839.0,87828.0,0.0113937]
[1766944469978,0.00017073,87843.0,87828.0,0.0113937]
[1766944470172,0.0243583,87842.0,87828.0,0.0113937]
[1766944470372,0.0243583,87841.0,87828.0,0.0113937]
[1766944470573,0.0243583,87840.0,87828.0,0.0113937]
[1766944470775,0.0243583,87839.0,87828.0,0.0113937]
[1766944470974,0.00017073,87843.0,87825.0,0.05709604]
[1766944471282,0.02435829,87842.0,87825.0,0.08709604]
[1766944471581,0.02435829,87841.0,87825.0,0.08709604]
[1766944471780,0.02435829,87840.0,87825.0,0.08709604]
[1766944471982,0.02435829,87839.0,87825.0,0.08709604]
[1766944472182,0.00017073,87843.0,87827.0,0.0113939]
[1766944472384,0.02435872,87842.0,87827.0,0.0413939]
[1766944472583,0.02435872,87841.0,87827.0,0.0413939]
[1766944472783,0.02435872,87840.0,87827.0,0.0413939]
[1766944472985,0.02435872,87839.0,87827.0,0.0413939]
[1766944473185,0.00017073,87843.0,87827.0,0.0413939]
[1766944473386,0.02435903,87842.0,87827.0,0.0413939]
[1766944473588,0.02435903,87841.0,87827.0,0.0413939]
[1766944473783,0.02435903,87840.0,87827.0,0.0413939]
[1766944473983,0.02435903,87839.0,87827.0,0.0413939]
[1766944474286,0.00017073,87843.0,87827.0,0.0413939]
[1766944474477,0.02435941,87842.0,87827.0,0.0413939]
[1766944474673,0.02435941,87841.0,87829.0,0.0113936]
[1766944474888,0.02435941,87840.0,87829.0,0.0113936]
[1766944475088,0.02435941,87839.0,87829.0,0.0113936]
[1766944475387,0.00017073,87843.0,87829.0,0.0113936]
[1766944475686,0.02435988,87842.0,87829.0,0.0113936]
[1766944475877,0.02435988,87841.0,87829.0,0.0113936]
[1766944476080,0.02435988,87840.0,87829.0,0.0113936]
[1766944476282,0.02435988,87839.0,87829.0,0.0113936]
[1766944476589,0.02435988,87838.0,87829.0,0.0113936]
[1766944476793,0.00017073,87843.0,87829.0,0.0113936]
[1766944476985,0.02435985,87842.0,87825.0,0.05709604]
[1766944477184,0.02435985,87841.0,87825.0,0.08709604]
[1766944477384,0.00017073,87843.0,87832.0,0.0113932]
[1766944477385,0.02435985,87840.0,87832.0,0.0113932]
[1766944477584,0.00017073,87843.0,87832.0,0.0113932]
[1766944477785,0.02435937,87842.0,87825.0,0.05709604]
[1766944477988,0.02435937,87841.0,87825.0,0.08709604]
[1766944478186,0.00017073,87843.0,87825.0,0.08709604]
[1766944478187,0.02435937,87840.0,87825.0,0.08709604]
[1766944478387,0.02435937,87839.0,87825.0,0.08709604]
[1766944478587,0.00017073,87843.0,87825.0,0.08709604]
[1766944478792,0.02435978,87842.0,87825.0,0.08709604]
[1766944479092,0.02435978,87841.0,87825.0,0.08709604]
[1766944479293,0.02435978,87840.0,87831.0,0.0113933]
[1766944479493,0.02435978,87839.0,87831.0,0.0413933]
[1766944479694,0.00017073,87843.0,87831.0,0.0413933]
[1766944479893,0.02435981,87842.0,87831.0,0.0413933]
[1766944480193,0.02435981,87841.0,87831.0,0.0113933]
[1766944480393,0.02435981,87840.0,87831.0,0.0113933]
[1766944480595,0.02435981,87839.0,87831.0,0.0113933]
[1766944480793,0.00017073,87843.0,87831.0,0.03]
[1766944480994,0.02435984,87842.0,87831.0,0.03]
[1766944481196,0.02435984,87841.0,87831.0,0.03]
[1766944481399,0.02435984,87840.0,87831.0,0.03]
[1766944481596,0.02435984,87839.0,87831.0,0.03]
[1766944481802,0.00017073,87843.0,87831.0,0.03]
[1766944482096,0.02435983,87842.0,87831.0,0.03]
[1766944482396,0.02435983,87841.0,87833.0,0.0113931]
[1766944482585,0.02435983,87840.0,87833.0,0.0113931]
[1766944482788,0.02435983,87839.0,87833.0,0.01041689]
[1766944482993,0.00017073,87843.0,87833.0,0.01041689]
[1766944483193,0.02435981,87842.0,87833.0,0.01041689]
[1766944483393,0.02435981,87841.0,87833.0,0.01041689]
[1766944483595,0.02435981,87840.0,87833.0,0.01041689]
[1766944483795,0.02435981,87839.0,87833.0,0.01041689]
[1766944483997,0.00017073,87843.0,87833.0,0.01041689]
[1766944484192,0.02435971,87842.0,87835.0,0.0113928]
[1766944484394,0.02435971,87841.0,87835.0,0.0113928]
[1766944484596,0.02435971,87840.0,87835.0,0.0113928]
[1766944484796,1e-08,87839.0,87835.0,0.0113928]
[1766944484998,0.00017073,87843.0,87835.0,0.0113928]
[1766944488002,0.00017073,87843.0,87825.0,0.05709604]
[1766944488195,0.00017073,87843.0,87825.0,0.08709604]
[1766944489101,0.00017073,87843.0,87825.0,0.05709604]
[1766944489399,0.00017073,87843.0,87830.0,0.0113935]
[1766944489700,0.00017073,87843.0,87830.0,0.0413935]
[1766944491601,0.00017073,87843.0,87832.0,0.0113932]
[1766944491898,0.00017073,87843.0,87832.0,0.0413932]
[1766944494703,0.00017073,87843.0,87834.0,0.011393]
[1766944496705,0.024204,87842.0,87834.0,0.011393]
[1766944496898,0.024204,87841.0,87834.0,0.011393]
[1766944497105,0.024204,87840.0,87825.0,0.05709604]
[1766944497406,0.024204,87839.0,87825.0,0.08709604]
[1766944497592,0.00017073,87843.0,87825.0,0.08709604]
[1766944498196,0.00017073,87843.0,87832.0,0.0113932]
[1766944498396,0.00017073,87843.0,87832.0,0.03]
[1766944499301,0.00017073,87843.0,87832.0,0.0413932]
[1766944502409,0.00017073,87843.0,87834.0,0.0113929]
[1766944503209,0.00017073,87843.0,87832.0,0.0113932]
[1766944503512,0.00017073,87843.0,87834.0,0.011393]
[1766944507122,0.00017073,87843.0,87832.0,0.0113933]
[1766944507319,0.00017073,87843.0,87832.0,0.0413933]
[1766944509621,0.02415649,87842.0,87832.0,0.0413933]
[1766944509824,0.02415649,87841.0,87832.0,0.0413933]
[1766944510022,0.02415649,87840.0,87832.0,0.0413933]
[1766944510223,0.02415649,87839.0,87832.0,0.0413933]
[1766944510425,0.02415649,87838.0,87832.0,0.0413933]
[1766944510623,0.02415649,87837.0,87832.0,0.0413933]
[1766944510826,0.00017073,87843.0,87832.0,0.0413933]
[1766944511125,0.02415622,87842.0,87832.0,0.0413933]
[1766944511324,0.02415622,87841.0,87832.0,0.0413933]
[1766944511524,0.02415622,87840.0,87832.0,0.0413933]
[1766944511726,0.02415622,87839.0,87832.0,0.0413933]
[1766944511916,0.00017073,87843.0,87832.0,0.0413933]
[1766944511917,0.02415622,87838.0,87832.0,0.0413933]
[1766944512116,0.00017073,87843.0,87832.0,0.0413933]
[1766944512829,0.00017073,87843.0,87832.0,0.03]
[1766944513326,0.00017073,87843.0,87828.0,0.01310022]
[1766944513528,0.0999489,87840.0,87828.0,0.04310022]
[1766944514327,0.0999489,87840.0,87831.0,0.0113933]
[1766944515835,0.0999489,87840.0,87833.0,0.0113931]
[1766944516735,0.0999489,87840.0,87828.0,0.0131016]
[1766944516924,0.0999489,87840.0,87831.0,0.0113933]
[1766944517124,0.00017073,87843.0,87831.0,0.0113933]
[1766944517733,0.0999489,87841.0,87831.0,0.0113933]
[1766944518133,0.0999489,87841.0,87825.0,9.604e-05]
[1766944518334,0.0999489,87841.0,87825.0,0.03009604]
[1766944518535,0.0999489,87841.0,87832.0,0.0113932]
[1766944524033,0.02403953,87840.0,87832.0,0.0113932]
[1766944524227,0.0999489,87841.0,87832.0,0.0113932]
[1766944524427,0.02403952,87840.0,87832.0,0.0113932]
[1766944524627,0.08978434,87841.0,87832.0,0.0113932]
[1766944525933,0.08978434,87841.0,87834.0,0.011393]
[1766944526538,0.00017073,87843.0,87834.0,0.011393]
[1766944526730,0.00017073,87843.0,87825.0,9.604e-05]
[1766944526931,0.00017073,87843.0,87825.0,0.03009604]
[1766944527240,0.00017073,87843.0,87834.0,0.011393]
[1766944528137,0.00017073,87843.0,87825.0,9.604e-05]
[1766944528338,0.00017073,87843.0,87833.0,0.0113931]
[1766944528538,0.00017073,87843.0,87825.0,9.604e-05]
[1766944528739,0.00017073,87843.0,87833.0,0.0113931]
[1766944536951,0.10011963,87843.0,87833.0,0.0113931]
[1766944559563,0.10011963,87843.0,87829.0,0.0113935]
[1766944559747,0.0999489,87840.0,87829.0,0.0413935]
[1766944559949,0.0999489,87840.0,87826.0,0.011394]
[1766944560152,0.0999489,87840.0,87828.0,0.0113937]
[1766944560352,0.0999489,87840.0,87828.0,0.0413937]
[1766944564565,0.0999489,87840.0,87830.0,0.0113935]
[1766944566465,0.00017073,87843.0,87830.0,0.0113935]
[1766944566661,0.02397019,87842.0,87830.0,0.0113935]
[1766944566962,0.02397019,87841.0,87830.0,0.0113935]
[1766944567162,0.02397019,87840.0,87830.0,0.0113935]
[1766944567363,0.00017073,87843.0,87830.0,0.0113935]
[1766944567564,0.02397014,87842.0,87830.0,0.0113935]
[1766944567758,0.02397014,87841.0,87830.0,0.0113935]
[1766944568058,0.02397014,87840.0,87830.0,0.0113935]
[1766944568258,0.00017073,87843.0,87830.0,0.0113935]
[1766944568460,0.0239701,87842.0,87830.0,0.0113935]
[1766944568660,0.0239701,87841.0,87830.0,0.0113935]
[1766944568860,0.0239701,87840.0,87830.0,0.0113935]
[1766944569063,0.00017073,87843.0,87830.0,0.0113935]
[1766944569259,0.02397001,87842.0,87830.0,0.0113935]
[1766944569460,0.02397001,87841.0,87830.0,0.0113935]
[1766944569663,0.02397001,87840.0,87830.0,0.0113935]
[1766944569861,0.00017073,87843.0,87830.0,0.0113935]
[1766944570069,0.02397001,87842.0,87830.0,0.0113935]
[1766944570275,0.02397001,87841.0,87830.0,0.0113935]
[1766944570476,0.02397001,87840.0,87830.0,0.0113935]
[1766944570678,0.02397001,87839.0,87830.0,0.0113935]
[1766944570878,0.00017073,87843.0,87830.0,0.0113935]
[1766944571078,0.02396996,87842.0,87830.0,0.0113935]
[1766944571283,0.02396996,87841.0,87830.0,0.0113935]
[1766944571486,0.02396996,87840.0,87830.0,0.0113935]
[1766944571686,0.02396996,87839.0,87830.0,0.0113935]
[1766944571875,0.00017073,87843.0,87830.0,0.0113935]
[1766944572074,0.02396996,87842.0,87830.0,0.0113935]
[1766944572281,0.02396996,87841.0,87830.0,0.0113935]
[1766944572475,0.02396996,87840.0,87830.0,0.0113935]
[1766944572676,0.02396996,87839.0,87830.0,0.0113935]
[1766944572877,0.00017073,87843.0,87830.0,0.0113935]
[1766944573077,0.02396994,87842.0,87830.0,0.0113935]
[1766944573278,0.02396994,87841.0,87830.0,0.0113935]
[1766944573479,0.02396994,87840.0,87827.0,0.0113939]
[1766944573678,0.02396994,87839.0,87827.0,0.0113939]
[1766944573885,0.00017073,87843.0,87827.0,0.0413939]
[1766944574185,0.02396992,87842.0,87827.0,0.0413939]
[1766944574385,0.02396992,87841.0,87829.0,0.0113936]
[1766944574591,0.02396992,87840.0,87829.0,0.0113936]
[1766944574883,0.02396992,87839.0,87829.0,0.0113936]
[1766944575082,0.00017073,87843.0,87829.0,0.0113936]
[1766944575290,0.02396993,87842.0,87829.0,0.0113936]
[1766944575588,0.02396993,87841.0,87829.0,0.0113936]
[1766944575776,0.02396993,87840.0,87829.0,0.0113936]
[1766944576083,0.02396993,87839.0,87829.0,0.0113936]
[1766944576383,0.00017073,87843.0,87829.0,0.0113936]
[1766944576583,0.02396996,87842.0,87829.0,0.0113936]
[1766944576789,0.02396996,87841.0,87829.0,0.0113936]
[1766944576988,0.02396991,87840.0,87829.0,0.0113936]
[1766944577183,0.02396991,87839.0,87829.0,0.0113936]
[1766944577479,0.00017073,87843.0,87829.0,0.0113936]
[1766944577679,0.0239685,87842.0,87829.0,0.0113936]
[1766944577879,0.0239685,87841.0,87829.0,0.0113936]
[1766944578079,0.0239685,87840.0,87829.0,0.0113936]
[1766944578385,0.0239685,87839.0,87831.0,0.0113934]
[1766944578586,0.00017073,87843.0,87831.0,0.0113934]
[1766944578788,0.02396851,87842.0,87831.0,0.0113934]
[1766944579084,0.02396851,87841.0,87831.0,0.0113934]
[1766944579285,0.02396851,87840.0,87831.0,0.0113934]
[1766944579491,0.02396851,87839.0,87831.0,0.0113934]
[1766944579683,0.00017073,87843.0,87831.0,0.0113934]
[1766944579884,0.02396857,87842.0,87831.0,0.0113934]
[1766944580091,0.02396857,87841.0,87831.0,0.0113934]
[1766944580388,0.02396857,87840.0,87831.0,0.0113934]
[1766944580586,0.02396857,87839.0,87831.0,0.0113934]
[1766944580787,0.00017073,87843.0,87831.0,0.0113934]
[1766944580988,0.02396864,87842.0,87831.0,0.0113934]
[1766944581188,0.02396864,87841.0,87831.0,0.0113934]
[1766944581389,0.02396864,87840.0,87831.0,0.0113934]
[1766944581697,0.02396549,87839.0,87803.0,0.00227784]
[1766944581994,0.09995776,87830.0,87778.0,0.15384]
[1766944582189,0.00017083,87813.0,87795.0,0.011398]
[1766944582386,0.02396549,87812.0,87795.0,0.03]
[1766944582591,9.956e-05,87811.0,87794.0,0.0113981]
[1766944582785,0.09684,87818.0,87795.0,0.011398]
[1766944582986,0.02549608,87817.0,87795.0,0.041398]
[1766944583287,0.02549608,87816.0,87795.0,0.041398]
[1766944583487,0.02549608,87815.0,87795.0,0.03]
[1766944583697,0.09684,87818.0,87795.0,0.03]
[1766944583900,0.00017083,87814.0,87796.0,0.00017083]
[1766944584193,0.00017083,87814.0,87796.0,0.03017083]
[1766944586798,0.00017083,87814.0,87796.0,0.00017083]
[1766944590093,0.00017083,87814.0,87797.0,0.057]
[1766944590300,0.00017083,87814.0,87798.0,0.057]
[1766944594392,0.02656175,87813.0,87798.0,0.057]
[1766944594593,0.00017083,87814.0,87798.0,0.087]
[1766944594904,0.00017083,87814.0,87798.0,0.057]
[1766944596603,0.02656064,87813.0,87798.0,0.057]
[1766944596803,0.00017083,87814.0,87798.0,0.057]
[1766944597103,0.02656064,87813.0,87798.0,0.057]
[1766944597305,0.00017083,87814.0,87798.0,0.0683977]
[1766944597502,0.00017083,87814.0,87798.0,0.057]
[1766944597503,0.02656103,87813.0,87798.0,0.057]
[1766944597703,0.02656105,87812.0,87798.0,0.057]
[1766944597899,0.00017083,87814.0,87798.0,0.057]
[1766944598103,0.02656105,87813.0,87798.0,0.057]
[1766944598297,0.02656105,87812.0,87798.0,0.057]
[1766944598499,0.00017083,87814.0,87798.0,0.057]
[1766944598700,0.02656211,87813.0,87798.0,0.057]
[1766944598899,0.02656211,87812.0,87798.0,0.057]
[1766944599098,0.00017083,87814.0,87798.0,0.057]
[1766944599303,0.02656382,87813.0,87799.0,0.0113975]
[1766944599500,0.02656382,87812.0,87796.0,0.057]
[1766944599705,0.00017083,87814.0,87797.0,0.0113978]
[1766944599706,0.02656382,87811.0,87797.0,0.0113978]
[1766944599896,0.00017083,87814.0,87797.0,0.0113978]
[1766944600101,0.02656395,87813.0,87797.0,0.0113978]
[1766944600303,0.02656395,87812.0,87797.0,0.0113978]
[1766944600503,0.02656395,87811.0,87797.0,0.0113978]
[1766944600705,0.00017083,87814.0,87796.0,0.057]
[1766944601001,0.02656632,87813.0,87796.0,0.057]
[1766944601204,0.02656632,87812.0,87796.0,0.057]
[1766944601402,0.02656632,87811.0,87796.0,0.057]
[1766944601603,0.02656632,87810.0,87796.0,0.057]
[1766944601805,0.00017083,87814.0,87796.0,0.057]
[1766944602006,0.02656929,87813.0,87796.0,0.057]
[1766944602198,0.02656929,87812.0,87796.0,0.057]
[1766944602397,0.02656929,87811.0,87796.0,0.057]
[1766944602603,0.02656929,87810.0,87796.0,0.057]
[1766944602803,0.00017083,87814.0,87796.0,0.057]
[1766944603099,0.02657309,87813.0,87796.0,0.057]
[1766944603302,0.02657309,87812.0,87796.0,0.057]
[1766944603500,0.02657309,87811.0,87796.0,0.057]
[1766944603701,0.02657309,87810.0,87796.0,0.057]
[1766944603901,0.00017083,87814.0,87796.0,0.057]
[1766944604110,0.02657781,87813.0,87796.0,0.057]
[1766944604312,0.00017083,87814.0,87796.0,0.057]
[1766944604510,0.02658345,87813.0,87796.0,0.057]
[1766944604810,0.00017083,87814.0,87796.0,0.057]
[1766944605006,0.02658345,87813.0,87796.0,0.057]
[1766944605202,0.00017083,87814.0,87796.0,0.057]
[1766944605509,0.02659023,87813.0,87796.0,0.057]
[1766944605709,0.00017083,87814.0,87796.0,0.057]
[1766944605900,0.02659023,87813.0,87796.0,0.057]
[1766944606096,0.02659834,87812.0,87796.0,0.057]
[1766944606304,0.00017083,87814.0,87796.0,0.057]
[1766944606505,0.02659834,87813.0,87796.0,0.057]
[1766944606704,0.02659834,87812.0,87796.0,0.057]
[1766944606904,0.00017083,87814.0,87796.0,0.057]
[1766944607211,0.02659834,87813.0,87796.0,0.057]
[1766944607406,0.02659834,87812.0,87796.0,0.057]
[1766944607606,0.02659834,87811.0,87796.0,0.057]
[1766944607808,0.00017083,87814.0,87796.0,0.057]
[1766944608010,0.02660813,87813.0,87796.0,0.057]
[1766944608205,0.02660813,87812.0,87796.0,0.057]
[1766944608410,0.02660813,87811.0,87796.0,0.057]
[1766944608705,0.02660813,87810.0,87796.0,0.057]
[1766944608911,0.00017083,87814.0,87796.0,0.057]
[1766944609113,0.02662012,87813.0,87796.0,0.057]